{"text_format":"1","workbook":"xlsx","n_sheets":3,"sheets":["List2","Data","FORMULAR "],"not_rendered":{"charts":0,"images":2,"macros":1,"external_links":0,"defined_names":2,"comments":0,"pivot_tables":0},"unopened":[],"bounds":{"document_bytes":16777216,"sheet_cells":100000,"rows_first":2000,"rows_last":500,"rows_between":2000,"halvings":0,"cell_chars":16384,"cell_head_chars":4096},"cells_cut":0,"cells_raw":0,"read":"whole","date_system":"1900"}

{"sheet":"List2","index":0,"n_rows":21,"n_cols":2,"rows_kept":21,"cut":false,"hidden":false,"merged":[[3,1,3,13],[8,1,8,13],[13,1,13,13],[0,1,0,13],[4,1,4,13],[5,1,5,13],[9,1,9,13],[10,1,10,13],[20,1,20,13],[14,1,14,13],[15,1,15,13],[18,1,18,13],[19,1,19,13]]}
[null,"Před použitím / vor Nutzung / before using / Перед использованием"]
[]
["·        ","ČESKY"]
[null,"Musíte se ujistit, že \"stupeň zabezpečení\" maker v Excel, je nastavený na \"střední\". Bez této konfigurace makra nefungují."]
[null,"Na listě zvolte jazyk."]
[null,"Vyplňujte žlutě označená pole "]
[]
["·         ","ENGLISH"]
[null,"You must make sure, that the “security level” of the macros in Excel, is set to “medium”. Without this configuration, it’s not possible to enable the macros. "]
[null,"An paper choose language."]
[null,"Fill in the places marked in yellow "]
[]
["·         ","DEUTSCH"]
[null,"Es muss in Excel sichergestellt sein, dass die “Sicherheitsstufe” der Makros als “Mittel” definiert ist. Ohne diese Konfiguration, funktionieren die Makros nicht."]
[null,"Für  Blatt die Sprache auswählen."]
[null,"Die gelb gekennzeichnete Felder  ausfüllen."]
[]
["·         ","ПО-РУССКИ"]
[null,"Вы должы удостовериться что\"ступень обеспечении\" maker в Excel, наставлен на \"средний\". Без данной конфигурации makra бездействует."]
[null,"На странице укажите язык"]
[null,"Заполняйте поля обозначенные желтой краской "]

{"sheet":"Data","index":1,"n_rows":14,"n_cols":5,"rows_kept":14,"cut":false,"hidden":true,"merged":[]}
[]
[]
[null,"ČESKY","ENGLISH","DEUTSCH","ПО-РУССКИ"]
[null,"VZOREK ","SAMPLE","MUSTER","ОБРАЗЕЦ"]
[null,"Dodavatel:","Supplier:","Lieferant:","Поставщик: "]
[null,"Číslo vzorkové zprávy zákazníka:","Inspection report No.-Customer:","Bemusterungsnummer-Kunde:","Номер протокола отбора проб:"]
[null,"Počet vzorků:","Amount of samples","Stückzahl muster:","Количество образцов:"]
[null,"Zákazník:","Customer:","Kunde:","Заказчик:"]
[null,"Název výrobku:","Name of product:","Produktbenennung:","Название продукта:"]
[null,"Číslo výkresu:","Drawing number","Zeichnungsnummer:","Номер чертежа:"]
[null,"Index:","Index:","Index:","Индекс:"]
[null,"Materiál:","Material:","Material:","Материал:"]
[null,"Datum, razítko, podpis:","Date, company stample, signature:","Datum, Stempel, Unterschrift:","Дата , печать и подпись:"]
[null,"Poznámka:","Comment:","Bemerkung:","Примечание:"]

{"sheet":"FORMULAR ","index":2,"n_rows":31,"n_cols":16,"rows_kept":31,"cut":false,"hidden":false,"merged":[[30,0,30,2],[30,9,30,11],[21,11,21,13],[21,10,27,10],[24,12,24,14],[25,12,25,16],[21,0,29,0],[21,1,27,1],[24,3,24,5],[25,3,25,7],[26,2,26,7],[27,2,28,7],[22,6,22,7],[23,3,23,7],[21,2,21,4],[28,1,29,1],[29,3,29,7],[21,6,21,7],[22,3,22,5],[20,0,20,2],[20,9,20,11],[7,11,8,16],[8,10,9,10],[9,12,9,16],[20,4,20,8],[11,2,11,4],[5,12,5,16],[6,11,6,16],[21,9,29,9],[13,12,13,16],[10,9,10,11],[26,11,26,16],[22,15,22,16],[29,12,29,16],[21,15,21,16],[27,11,28,16],[28,10,29,10],[22,12,22,14],[23,12,23,16],[1,15,1,16],[2,12,2,14],[2,15,2,16],[3,12,3,16],[1,11,1,13],[17,11,18,16],[16,11,16,16],[11,9,19,9],[11,10,17,10],[11,15,11,16],[12,12,12,14],[12,15,12,16],[11,11,11,13],[18,10,19,10],[19,12,19,16],[14,12,14,14],[15,12,15,16],[1,2,1,4],[11,1,17,1],[11,6,11,7],[12,3,12,5],[12,6,12,7],[13,3,13,7],[17,2,18,7],[18,1,19,1],[19,3,19,7],[14,3,14,5],[16,2,16,7],[10,0,10,2],[11,0,19,0],[15,3,15,7],[0,0,0,16],[1,0,9,0],[1,9,9,9],[6,2,6,7],[4,3,4,5],[9,3,9,7],[2,6,2,7],[2,3,2,5],[1,10,7,10],[4,12,4,14],[8,1,9,1],[1,1,7,1],[7,2,8,7],[1,6,1,7],[3,3,3,7],[5,3,5,7]]}
[]
[{"$f":"Data!B4","v":"VZOREK "},null,{"$f":"Data!B6","v":"Číslo vzorkové zprávy zákazníka:"},null,null,null,{"$f":"Data!B7","v":"Počet vzorků:"},null,null,{"$f":"Data!B4","v":"VZOREK "},null,{"$f":"Data!B6","v":"Číslo vzorkové zprávy zákazníka:"},null,null,null,{"$f":"Data!B7","v":"Počet vzorků:"}]
[null,null,{"$f":"Data!B8","v":"Zákazník:"},"Motorpal a.s.",null,null,null,null,null,null,null,{"$f":"Data!B8","v":"Zákazník:"},"Motorpal a.s."]
[null,null,{"$f":"Data!B9","v":"Název výrobku:"},null,null,null,null,null,null,null,null,{"$f":"Data!B9","v":"Název výrobku:"}]
[null,null,{"$f":"Data!B10","v":"Číslo výkresu:"},null,null,null,{"$f":"Data!B11","v":"Index:"},null,null,null,null,{"$f":"Data!B10","v":"Číslo výkresu:"},null,null,null,{"$f":"Data!B11","v":"Index:"}]
[null,null,{"$f":"Data!B12","v":"Materiál:"},null,null,null,null,null,null,null,null,{"$f":"Data!B12","v":"Materiál:"}]
[null,null,{"$f":"Data!B13","v":"Datum, razítko, podpis:"},null,null,null,null,null,null,null,null,{"$f":"Data!B13","v":"Datum, razítko, podpis:"}]
[]
[null,{"$f":"Data!B5","v":"Dodavatel:"},null,null,null,null,null,null,null,null,{"$f":"Data!B5","v":"Dodavatel:"}]
[null,null,{"$f":"Data!B14","v":"Poznámka:"},null,null,null,null,null,null,null,null,{"$f":"Data!B14","v":"Poznámka:"}]
["ŘK-11-6-016-16-0",null,null,null,null,null,null,null,null,"ŘK-11-6-016-16-0"]
[{"$f":"Data!B4","v":"VZOREK "},null,{"$f":"Data!B6","v":"Číslo vzorkové zprávy zákazníka:"},null,null,null,{"$f":"Data!B7","v":"Počet vzorků:"},null,null,{"$f":"Data!B4","v":"VZOREK "},null,{"$f":"Data!B6","v":"Číslo vzorkové zprávy zákazníka:"},null,null,null,{"$f":"Data!B7","v":"Počet vzorků:"}]
[null,null,{"$f":"Data!B8","v":"Zákazník:"},"Motorpal a.s.",null,null,null,null,null,null,null,{"$f":"Data!B8","v":"Zákazník:"},"Motorpal a.s."]
[null,null,{"$f":"Data!B9","v":"Název výrobku:"},null,null,null,null,null,null,null,null,{"$f":"Data!B9","v":"Název výrobku:"}]
[null,null,{"$f":"Data!B10","v":"Číslo výkresu:"},null,null,null,{"$f":"Data!B11","v":"Index:"},null,null,null,null,{"$f":"Data!B10","v":"Číslo výkresu:"},null,null,null,{"$f":"Data!B11","v":"Index:"}]
[null,null,{"$f":"Data!B12","v":"Materiál:"},null,null,null,null,null,null,null,null,{"$f":"Data!B12","v":"Materiál:"}]
[null,null,{"$f":"Data!B13","v":"Datum, razítko, podpis:"},null,null,null,null,null,null,null,null,{"$f":"Data!B13","v":"Datum, razítko, podpis:"}]
[]
[null,{"$f":"Data!B5","v":"Dodavatel:"},null,null,null,null,null,null,null,null,{"$f":"Data!B5","v":"Dodavatel:"}]
[null,null,{"$f":"Data!B14","v":"Poznámka:"},null,null,null,null,null,null,null,null,{"$f":"Data!B14","v":"Poznámka:"}]
["ŘK-11-6-016-16-0",null,null,null,null,null,null,null,null,"ŘK-11-6-016-16-0"]
[{"$f":"Data!B4","v":"VZOREK "},null,{"$f":"Data!B6","v":"Číslo vzorkové zprávy zákazníka:"},null,null,null,{"$f":"Data!B7","v":"Počet vzorků:"},null,null,{"$f":"Data!B4","v":"VZOREK "},null,{"$f":"Data!B6","v":"Číslo vzorkové zprávy zákazníka:"},null,null,null,{"$f":"Data!B7","v":"Počet vzorků:"}]
[null,null,{"$f":"Data!B8","v":"Zákazník:"},"Motorpal a.s.",null,null,null,null,null,null,null,{"$f":"Data!B8","v":"Zákazník:"},"Motorpal a.s."]
[null,null,{"$f":"Data!B9","v":"Název výrobku:"},null,null,null,null,null,null,null,null,{"$f":"Data!B9","v":"Název výrobku:"}]
[null,null,{"$f":"Data!B10","v":"Číslo výkresu:"},null,null,null,{"$f":"Data!B11","v":"Index:"},null,null,null,null,{"$f":"Data!B10","v":"Číslo výkresu:"},null,null,null,{"$f":"Data!B11","v":"Index:"}]
[null,null,{"$f":"Data!B12","v":"Materiál:"},null,null,null,null,null,null,null,null,{"$f":"Data!B12","v":"Materiál:"}]
[null,null,{"$f":"Data!B13","v":"Datum, razítko, podpis:"},null,null,null,null,null,null,null,null,{"$f":"Data!B13","v":"Datum, razítko, podpis:"}]
[]
[null,{"$f":"Data!B5","v":"Dodavatel:"},null,null,null,null,null,null,null,null,{"$f":"Data!B5","v":"Dodavatel:"}]
[null,null,{"$f":"Data!B14","v":"Poznámka:"},null,null,null,null,null,null,null,null,{"$f":"Data!B14","v":"Poznámka:"}]
["ŘK-11-6-016-16-0",null,null,null,null,null,null,null,null,"ŘK-11-6-016-16-0"]